bitfinex/quotes_BTCUSD_20230109
["timestamp","ask_amount","ask_price","bid_price","bid_amount"]
[1673257279147,1.238212,17256.0,17255.0,9.40930363]
[1673257279665,1.238212,17256.0,17255.0,9.04579563]
[1673257280160,1.238212,17256.0,17255.0,9.40930363]
[1673257280411,1.238212,17256.0,17255.0,9.04579563]
[1673257280659,1.701818,17256.0,17255.0,9.04579563]
[1673257283238,1.69718828,17256.0,17255.0,9.04579563]
[1673257284174,1.68136748,17256.0,17255.0,9.04579563]
[1673257287241,1.38136748,17256.0,17255.0,9.04579563]
[1673257289490,1.68136748,17256.0,17255.0,9.04579563]
[1673257290836,1.68136748,17256.0,17255.0,9.40930363]
[1673257291350,1.38136748,17256.0,17255.0,9.40930363]
[1673257291611,1.38136748,17256.0,17255.0,9.04579563]
[1673257292605,1.68136748,17256.0,17255.0,9.04579563]
[1673257293366,0.91776148,17256.0,17255.0,9.40930363]
[1673257299535,0.45415548,17256.0,17255.0,9.40930363]
[1673257300315,0.463604,17257.0,17255.0,9.57670363]
[1673257300583,0.463604,17257.0,17256.0,0.531408]
[1673257300862,0.463604,17257.0,17256.0,0.931408]
[1673257301372,0.467604,17257.0,17256.0,0.931408]
[1673257301930,0.931183,17257.0,17256.0,0.931408]
[1673257302221,0.931183,17257.0,17256.0,0.5679]
[1673257302423,0.927183,17257.0,17256.0,0.5679]
[1673257302683,0.931183,17257.0,17256.0,0.5969]
[1673257303163,0.931183,17257.0,17256.0,0.960408]
[1673257303415,0.931183,17257.0,17256.0,0.5969]
[1673257304157,0.931183,17257.0,17256.0,0.960408]
[1673257304405,0.931183,17257.0,17256.0,1.49788979]
[1673257304659,0.467579,17257.0,17256.0,1.49788979]
[1673257304902,0.467579,17257.0,17256.0,1.66438979]
[1673257304903,0.004,17257.0,17256.0,1.66438979]
[1673257308942,0.004,17257.0,17256.0,1.66428504]
[1673257309717,0.004,17257.0,17256.0,2.08507041]
[1673257309963,0.004,17257.0,17256.0,1.66428504]
[1673257314495,0.004,17257.0,17256.0,2.66443033]
[1673257314760,0.004,17257.0,17256.0,2.82330104]
[1673257315019,0.004,17257.0,17256.0,3.24390645]
[1673257315276,0.004,17257.0,17256.0,2.82330104]
[1673257316045,0.004,17257.0,17256.0,2.24379304]
[1673257316809,0.463664,17260.0,17257.0,0.94341831]
[1673257317065,0.00015,17260.0,17258.0,0.60118589]
[1673257317318,0.926988,17261.0,17259.0,0.763508]
[1673257317572,0.926988,17261.0,17260.0,0.4398588]
[1673257317813,0.926988,17261.0,17260.0,0.0763508]
[1673257319091,1.050988,17261.0,17260.0,0.0823508]
[1673257320837,0.587489,17261.0,17260.0,0.86396778]
[1673257321373,0.124,17261.0,17260.0,0.86396778]
[1673257322822,0.124,17261.0,17260.0,0.69980778]
[1673257323078,0.587472,17261.0,17260.0,0.69980778]
[1673257324108,0.124,17261.0,17260.0,0.69980778]
[1673257324366,0.114,17261.0,17260.0,1.06331578]
[1673257325911,0.114,17261.0,17260.0,0.69980778]
[1673257328015,0.114,17261.0,17260.0,0.62345698]
[1673257330357,0.114,17261.0,17260.0,0.98696498]
[1673257331145,0.114,17261.0,17260.0,0.62345698]
[1673257331650,0.114,17261.0,17260.0,0.98696498]
[1673257331901,0.114,17261.0,17260.0,0.62345698]
[1673257334317,0.577472,17261.0,17260.0,0.006]
[1673257334835,1.040944,17261.0,17260.0,0.006]
[1673257335099,1.0408261,17261.0,17260.0,0.006]
[1673257335868,0.5773541,17261.0,17260.0,0.006]
[1673257339709,1.0408261,17261.0,17260.0,0.006]
[1673257340449,0.5773541,17261.0,17260.0,0.006]
[1673257340702,0.9828921,17261.0,17260.0,0.006]
[1673257356367,0.9828921,17261.0,17260.0,0.00589504]
[1673257359669,0.9828921,17261.0,17260.0,0.02386555]
[1673257361191,1.58027661,17261.0,17260.0,0.02386555]
[1673257361459,3.11689056,17261.0,17260.0,0.02386555]
[1673257361727,3.11706623,17261.0,17260.0,0.02386555]
[1673257361987,2.75169357,17261.0,17260.0,0.02386555]
[1673257363346,2.79649832,17261.0,17260.0,0.02386555]
[1673257363765,3.2502872,17261.0,17260.0,0.02386555]
[1673257364263,2.75169357,17261.0,17260.0,0.02386555]
[1673257364516,2.92357022,17261.0,17260.0,0.02386555]
[1673257366266,2.75169357,17261.0,17260.0,0.02386555]
[1673257366518,3.27298844,17261.0,17260.0,0.02386555]
[1673257367324,3.44108844,17261.0,17260.0,0.02386555]
[1673257367576,2.91979357,17261.0,17260.0,0.02386555]
[1673257368839,3.44082404,17261.0,17260.0,0.02386555]
[1673257369142,3.38121208,17261.0,17260.0,0.02386555]
[1673257369655,2.91979357,17261.0,17260.0,0.02386555]
[1673257369915,3.44082501,17261.0,17260.0,0.02386555]
[1673257376077,3.27432501,17261.0,17260.0,0.02386555]
[1673257377087,3.27432501,17261.0,17260.0,0.02377386]
[1673257378181,3.25962501,17261.0,17260.0,0.02377386]
[1673257378925,3.19238245,17261.0,17260.0,0.02377386]
[1673257381195,2.73859357,17261.0,17260.0,0.02377386]
[1673257381699,3.25940352,17261.0,17260.0,0.02377386]
[1673257381950,3.7131924,17261.0,17260.0,0.02377386]
[1673257382222,3.25940352,17261.0,17260.0,0.02377386]
[1673257386042,4.39791163,17261.0,17255.0,9.00179563]
[1673257386395,0.5162,17256.0,17255.0,9.00179563]
[1673257386585,1.39718989,17256.0,17255.0,9.641455]
[1673257386841,0.811312,17256.0,17255.0,9.00179563]
[1673257387095,1.18790329,17257.0,17256.0,0.92933673]
[1673257387096,0.811293,17257.0,17256.0,0.92933673]
[1673257388643,0.415639,17257.0,17256.0,0.95133673]
[1673257390191,0.41552129,17257.0,17256.0,0.95133673]
[1673257391164,0.01,17257.0,17256.0,0.95133673]
[1673257391420,0.01,17257.0,17256.0,1.31484473]
[1673257394416,0.01,17257.0,17256.0,1.89435273]
[1673257395396,0.01,17257.0,17256.0,2.3163392]
[1673257395875,0.01,17257.0,17256.0,1.89435273]
[1673257396125,0.01,17257.0,17256.0,2.47386073]
[1673257396887,0.01,17257.0,17256.0,2.64196073]
[1673257399735,0.01,17257.0,17256.0,2.06245273]
[1673257400249,0.01,17257.0,17256.0,1.48294473]
[1673257406585,0.01,17257.0,17256.0,1.11943673]
[1673257407102,0.01,17257.0,17256.0,1.48294473]
[1673257410977,0.01,17257.0,17256.0,1.4828575]
[1673257413255,0.01,17257.0,17256.0,2.0623655]
[1673257414272,0.01,17257.0,17256.0,1.4828575]
[1673257419912,0.01,17257.0,17256.0,1.1193495]
[1673257424255,0.01,17257.0,17256.0,1.4828575]
[1673257426946,0.01,17257.0,17256.0,1.3147575]
[1673257439719,0.01,17257.0,17256.0,2.89539083]
[1673257440501,0.01,17257.0,17256.0,3.01079083]
[1673257441486,0.01,17257.0,17256.0,3.04296238]
[1673257442250,0.01,17257.0,17256.0,3.95867038]
[1673257443008,0.01,17257.0,17256.0,3.42942088]
[1673257443266,0.01,17257.0,17256.0,4.21205496]
[1673257443530,0.01,17257.0,17256.0,4.27003928]
[1673257445376,0.01,17257.0,17256.0,4.35226022]
[1673257445871,0.01,17257.0,17256.0,3.6555052]
[1673257446104,0.01,17257.0,17256.0,4.28029632]
[1673257455658,0.01,17257.0,17256.0,4.60672088]
[1673257455939,0.01,17257.0,17256.0,5.31904059]
[1673257456186,0.01,17257.0,17256.0,5.61904059]
[1673257456674,0.01,17257.0,17256.0,4.90672088]
[1673257456890,0.01,17257.0,17256.0,4.91522088]
[1673257457106,0.01,17257.0,17256.0,3.90672088]
[1673257458083,0.43406429,17258.0,17256.0,3.90672088]
[1673257458347,0.43406429,17258.0,17257.0,1.85317029]
[1673257458590,0.43406429,17258.0,17257.0,3.68255073]
[1673257459152,0.43406429,17258.0,17257.0,3.01211829]
[1673257459153,0.43706429,17258.0,17257.0,3.01211829]
[1673257459347,0.43406429,17258.0,17257.0,3.01211829]
[1673257459586,0.43406429,17258.0,17257.0,3.60511819]
[1673257460073,0.44106429,17258.0,17257.0,3.40611819]
[1673257460329,0.43406429,17258.0,17257.0,3.30511819]
[1673257460576,0.44106429,17258.0,17257.0,3.40611819]
[1673257460836,0.43406429,17258.0,17257.0,3.30511819]
[1673257461338,0.43406429,17258.0,17257.0,2.96971819]
[1673257461581,0.43406429,17258.0,17257.0,2.96121819]
[1673257461849,0.44088681,17258.0,17257.0,3.06221819]
[1673257462087,0.43388681,17258.0,17257.0,2.96121819]
[1673257462329,0.44088681,17258.0,17257.0,3.64169219]
[1673257462586,0.43388681,17258.0,17257.0,3.54069219]
[1673257462838,0.44088681,17258.0,17257.0,3.94169219]
[1673257463086,0.44088681,17258.0,17257.0,3.54069219]
[1673257463331,0.44088681,17258.0,17257.0,3.34869229]
[1673257463612,0.43388681,17258.0,17257.0,3.87224436]
[1673257464365,0.43388681,17258.0,17257.0,3.57224436]
[1673257464585,0.43388681,17258.0,17257.0,3.73914436]
[1673257464797,0.44088681,17258.0,17257.0,3.84014436]
[1673257465057,0.43388681,17258.0,17257.0,4.03914436]
[1673257465308,0.44088681,17258.0,17257.0,4.14014436]
[1673257465553,0.44088681,17258.0,17257.0,4.03914436]
[1673257465817,0.43365,17258.0,17257.0,4.03914436]
[1673257466300,0.43365,17258.0,17257.0,3.73914436]
[1673257466516,0.44065,17258.0,17257.0,4.03914436]
[1673257466823,0.44041319,17258.0,17257.0,3.73914436]
[1673257467034,0.44741319,17258.0,17257.0,3.84014436]
[1673257467543,0.44741319,17258.0,17257.0,4.09980252]
[1673257467799,0.43298117,17258.0,17257.0,3.42309229]
[1673257468018,0.43298117,17258.0,17257.0,4.13775582]
[1673257468236,0.43998117,17258.0,17257.0,4.23875582]
[1673257468486,0.43298117,17258.0,17257.0,4.13775582]
[1673257468738,0.43998117,17258.0,17257.0,4.23875582]
[1673257468953,0.43248607,17258.0,17257.0,3.99032224]
[1673257469206,0.43248607,17258.0,17257.0,4.09132224]
[1673257469207,0.43948607,17258.0,17257.0,4.09132224]
[1673257469450,0.43248607,17258.0,17257.0,3.99032224]
[1673257469696,0.43948607,17258.0,17257.0,4.09132224]
[1673257469951,0.43898915,17258.0,17257.0,4.09132224]
[1673257470202,0.43898915,17258.0,17257.0,3.52409229]
[1673257470421,0.43898915,17258.0,17257.0,5.00480626]
[1673257470687,0.43849223,17258.0,17257.0,5.60661231]
[1673257471120,0.44549223,17258.0,17257.0,5.70761231]
[1673257471352,0.43149223,17258.0,17257.0,5.50561231]
[1673257471850,0.43099638,17258.0,17257.0,6.36183047]
[1673257472089,0.43099638,17258.0,17257.0,7.56053589]
[1673257472587,0.43099638,17258.0,17257.0,7.42024358]
[1673257473108,0.43076064,17258.0,17257.0,7.42024358]
[1673257473846,0.43052614,17258.0,17257.0,7.41174358]
[1673257474846,0.43003162,17258.0,17257.0,7.41174358]
[1673257475584,0.43003162,17258.0,17257.0,7.71174358]
[1673257475829,0.42954328,17258.0,17257.0,7.71174358]
[1673257476077,0.39504328,17258.0,17257.0,7.71174358]
[1673257477079,0.39504328,17258.0,17257.0,7.77341002]
[1673257477336,0.39504328,17258.0,17257.0,7.11843753]
[1673257477589,0.39504328,17258.0,17257.0,6.94992368]
[1673257478086,0.39504328,17258.0,17257.0,6.34782984]
[1673257478581,0.39504328,17258.0,17257.0,7.02131986]
[1673257478829,0.39504328,17258.0,17257.0,6.34782984]
[1673257479077,0.39504328,17258.0,17257.0,7.82051868]
[1673257480079,0.39504328,17258.0,17257.0,7.11843189]
[1673257480889,0.39504328,17258.0,17257.0,6.34782984]
[1673257481433,0.39504328,17258.0,17257.0,7.11698003]
[1673257482682,0.39504328,17258.0,17257.0,6.62418262]
[1673257482936,0.39504328,17258.0,17257.0,5.75436865]
[1673257484435,0.39504328,17258.0,17257.0,6.0524057]
[1673257484696,0.39504328,17258.0,17257.0,6.27353405]
[1673257484946,0.39504328,17258.0,17257.0,6.0524057]
[1673257485947,0.39504328,17258.0,17257.0,6.2189057]
[1673257486930,0.39504328,17258.0,17257.0,7.85788059]
[1673257487180,0.39504328,17258.0,17257.0,6.34547892]
[1673257487431,0.39504328,17258.0,17257.0,7.81342271]
[1673257488176,0.39504328,17258.0,17257.0,6.17444652]
[1673257488426,2.8e-07,17258.0,17257.0,7.11461001]
[1673257488676,0.60114607,17262.0,17258.0,1.18512984]
[1673257488923,0.60114607,17262.0,17260.0,0.68937733]
[1673257489168,0.60114607,17262.0,17261.0,3.76721716]
[1673257489416,0.60114607,17262.0,17261.0,4.56111321]
[1673257489660,0.58524227,17262.0,17261.0,4.62343532]
[1673257489904,0.59224227,17262.0,17261.0,4.79153532]
[1673257490148,0.42360019,17262.0,17261.0,4.79153532]
[1673257490400,0.42360019,17262.0,17261.0,5.46993532]
[1673257490896,0.42360019,17262.0,17261.0,5.65710408]
[1673257491158,0.42360019,17262.0,17261.0,6.7968095]
[1673257491414,0.42460019,17262.0,17261.0,6.9358095]
[1673257492408,0.42360019,17262.0,17261.0,6.79657114]
[1673257492658,0.42460019,17262.0,17261.0,7.45474578]
[1673257492912,0.42460019,17262.0,17261.0,8.03408174]
[1673257493912,0.42460019,17262.0,17261.0,7.32563565]
[1673257494155,0.41460019,17262.0,17261.0,7.32563565]
[1673257495166,0.41460019,17262.0,17261.0,6.97356101]
[1673257495167,0.06051598,17262.0,17261.0,6.97356101]
[1673257496435,0.06051598,17262.0,17261.0,8.13462738]
[1673257496689,0.06051598,17262.0,17261.0,7.49316211]
[1673257498944,0.06051598,17262.0,17261.0,6.97356101]
[1673257499185,0.06051598,17262.0,17261.0,7.49316211]
[1673257499939,0.06051598,17262.0,17261.0,6.28416709]
[1673257500733,0.06051598,17262.0,17261.0,6.07247151]
[1673257501228,0.06051598,17262.0,17261.0,5.63479742]
[1673257501483,0.05618398,17262.0,17261.0,5.63479742]
[1673257501992,0.05618398,17262.0,17261.0,5.63479645]
[1673257502243,0.05618398,17262.0,17261.0,6.06780087]
[1673257502497,0.05618398,17262.0,17261.0,5.36357518]
[1673257502745,0.05618398,17262.0,17261.0,5.77275065]
[1673257503009,0.05618398,17262.0,17261.0,5.76835685]
[1673257503258,0.05618398,17262.0,17261.0,4.81459119]
[1673257503505,0.05618398,17262.0,17261.0,5.89889305]
[1673257503768,0.05618398,17262.0,17261.0,5.94509229]
[1673257504028,0.05618398,17262.0,17261.0,7.31941025]
[1673257504539,0.05618398,17262.0,17261.0,7.31936358]
[1673257505335,0.05618398,17262.0,17261.0,7.87243722]
[1673257505610,0.05618398,17262.0,17261.0,7.31936358]
[1673257506607,0.05618398,17262.0,17261.0,7.3773479]
[1673257506874,0.05618398,17262.0,17261.0,6.85779347]
[1673257507638,0.01495434,17263.0,17261.0,6.85779347]
[1673257507900,0.01495434,17263.0,17262.0,4.70628207]
[1673257508160,0.01495434,17263.0,17262.0,6.95299007]
[1673257508625,0.01495434,17263.0,17262.0,5.23504343]
[1673257508906,0.01495434,17263.0,17262.0,6.95292505]
[1673257509152,0.01495434,17263.0,17262.0,5.23504343]
[1673257509407,0.01495434,17263.0,17262.0,5.37404343]
[1673257510403,0.01495434,17263.0,17262.0,6.58312487]
[1673257510905,0.01495434,17263.0,17262.0,6.06359619]
[1673257511151,0.01701466,17264.0,17262.0,7.49028195]
[1673257511399,0.01701466,17264.0,17263.0,3.99716424]
[1673257511647,0.01701466,17264.0,17263.0,6.10453881]
[1673257511890,0.85400128,17265.0,17264.0,1.0109]
[1673257512136,0.85400128,17265.0,17264.0,4.00663926]
[1673257512381,0.85400128,17265.0,17264.0,4.1335003]
[1673257512625,0.85400128,17265.0,17264.0,4.30663926]
[1673257513397,0.85400128,17265.0,17264.0,4.44563926]
[1673257513646,0.85400128,17265.0,17264.0,5.02487926]
[1673257513892,0.85400128,17265.0,17264.0,4.81287235]
[1673257514148,0.85400128,17265.0,17264.0,5.08942967]
[1673257514395,0.85400128,17265.0,17264.0,5.43564392]
[1673257514646,0.85400128,17265.0,17264.0,5.26249853]
[1673257515411,0.85245428,17265.0,17264.0,5.73565115]
[1673257515666,0.73485193,17265.0,17264.0,5.38936004]
[1673257515912,0.73295708,17265.0,17264.0,5.38939376]
[1673257516159,0.73106196,17265.0,17264.0,5.38939376]
[1673257516401,0.73106196,17265.0,17264.0,4.24607234]
[1673257516653,0.73106196,17265.0,17264.0,6.14030014]
[1673257516898,0.73106196,17265.0,17264.0,7.3333991]
[1673257517390,0.73106196,17265.0,17264.0,7.5014991]
[1673257517638,0.73106196,17265.0,17264.0,6.91930014]
[1673257518885,0.73106196,17265.0,17264.0,5.70722854]
[1673257519408,0.73106196,17265.0,17264.0,6.22665199]
[1673257519628,0.7234438,17265.0,17264.0,6.22665199]
[1673257519920,0.7234438,17265.0,17264.0,7.4248691]
[1673257520181,0.7234438,17265.0,17264.0,6.90544565]
[1673257520437,0.7234438,17265.0,17264.0,5.70722854]
[1673257520936,0.7234438,17265.0,17264.0,6.90544148]
[1673257521186,0.7234438,17265.0,17264.0,6.90544976]
[1673257521683,0.7234438,17265.0,17264.0,5.70722854]
[1673257521945,0.7234438,17265.0,17264.0,5.37102854]
[1673257522707,0.7234438,17265.0,17264.0,4.01050236]
[1673257522961,0.7234438,17265.0,17264.0,4.88920011]
[1673257523207,0.7234438,17265.0,17264.0,4.45639011]
[1673257523948,0.7234438,17265.0,17264.0,4.75639011]
[1673257524700,0.7234438,17265.0,17264.0,5.18927858]
[1673257525452,0.7234438,17265.0,17264.0,4.75639011]
[1673257527208,0.7234438,17265.0,17264.0,5.95467823]
[1673257527709,0.7234438,17265.0,17264.0,4.88993534]
[1673257527957,0.7234438,17265.0,17264.0,4.45649259]
[1673257528214,0.7234438,17265.0,17264.0,6.17528245]
[1673257528978,0.7234438,17265.0,17264.0,6.47528245]
[1673257533276,0.7234438,17265.0,17264.0,6.02929222]
[1673257533526,0.7234438,17265.0,17264.0,6.47553276]
[1673257534741,0.7234438,17265.0,17264.0,6.47582681]
[1673257535239,0.7234438,17265.0,17264.0,6.17582681]
[1673257535486,0.7234438,17265.0,17264.0,6.47582681]
[1673257536244,0.7234438,17265.0,17264.0,6.17582681]
[1673257536498,0.7234438,17265.0,17264.0,6.47582681]
[1673257536743,0.7234438,17265.0,17264.0,6.17582681]
[1673257536986,0.7234438,17265.0,17264.0,6.47582681]
[1673257537986,0.7234438,17265.0,17264.0,4.4567429]
[1673257538273,0.7234438,17265.0,17264.0,4.89110088]
[1673257538533,0.7234438,17265.0,17264.0,4.45706949]
[1673257538806,0.7234438,17265.0,17264.0,4.8911103]
[1673257539050,0.7234438,17265.0,17264.0,4.45706949]
[1673257539296,0.7234438,17265.0,17264.0,4.89110953]
[1673257540067,0.7234438,17265.0,17264.0,4.45702794]
[1673257540558,0.7234438,17265.0,17264.0,4.44457324]
[1673257541081,0.7234438,17265.0,17264.0,4.79183985]
[1673257541545,0.7234438,17265.0,17264.0,4.44457324]
[1673257541795,0.7234438,17265.0,17264.0,4.89113709]
[1673257542034,0.7234438,17265.0,17264.0,4.45706621]
[1673257542285,0.7234438,17265.0,17264.0,4.75706621]
[1673257542540,0.7234438,17265.0,17264.0,4.45706621]
[1673257542792,0.7234438,17265.0,17264.0,4.75706621]
[1673257543046,0.7234438,17265.0,17264.0,4.45706621]
[1673257543302,0.7234438,17265.0,17264.0,4.44467736]
[1673257544056,0.7234438,17265.0,17264.0,4.43617736]
[1673257545041,0.7234438,17265.0,17264.0,4.68617736]
[1673257545284,0.7234438,17265.0,17264.0,5.03351653]
[1673257545748,0.7234438,17265.0,17264.0,4.85984529]
[1673257547043,0.7234438,17265.0,17264.0,4.68618009]
[1673257547284,0.7234438,17265.0,17264.0,4.10694009]
[1673257547748,0.7234438,17265.0,17264.0,4.10678142]
[1673257548065,0.7234438,17265.0,17264.0,3.25072193]
[1673257548576,0.7234438,17265.0,17264.0,2.99021817]
[1673257548833,0.7234438,17265.0,17264.0,2.99011272]
[1673257549357,0.8899438,17265.0,17264.0,2.22671017]
[1673257549646,0.8899438,17265.0,17264.0,2.0530362]
[1673257549952,0.8899438,17265.0,17264.0,0.96824]
[1673257550144,0.8899438,17265.0,17264.0,0.389]
[1673257551380,0.8899438,17265.0,17264.0,0.96824]
[1673257551884,0.8899438,17265.0,17264.0,0.82924]
[1673257552139,0.8909438,17265.0,17264.0,0.96824]
[1673257552892,0.8909438,17265.0,17264.0,2.39811709]
[1673257553143,0.8909438,17265.0,17264.0,2.76162509]
[1673257553398,0.8909438,17265.0,17264.0,2.22444312]
[1673257554409,0.8909438,17265.0,17264.0,1.54748]
[1673257554666,1.53768087,17265.0,17264.0,0.389]
[1673257555177,1.70578087,17265.0,17264.0,0.389]
[1673257556716,1.70578087,17265.0,17264.0,0.139]
[1673257557249,0.98233707,17265.0,17264.0,0.139]
[1673257558764,0.3356,17265.0,17264.0,0.139]
[1673257560809,0.3356,17265.0,17264.0,0.71824]
[1673257561562,0.18605137,17266.0,17264.0,1.79403549]
[1673257561815,0.18605137,17266.0,17265.0,0.763508]
[1673257562063,0.18605137,17266.0,17265.0,1.92192]
[1673257562309,0.18605137,17266.0,17265.0,0.979206]
[1673257563068,0.18705137,17266.0,17265.0,0.539]
[1673257565094,0.18705137,17266.0,17265.0,0.139]
[1673257565843,0.85725572,17266.0,17265.0,0.139]
[1673257570105,0.88561604,17267.0,17266.0,0.39978394]
[1673257570343,1.05371604,17267.0,17266.0,0.39978394]
[1673257571318,1.40027298,17267.0,17264.0,0.4]
[1673257571569,1.47085087,17267.0,17266.0,0.066]
[1673257571815,1.40127298,17267.0,17266.0,0.066]
[1673257572317,1.40027298,17267.0,17264.0,0.4]
[1673257572565,0.1667,17266.0,17264.0,0.4]
[1673257572839,0.39837,17266.0,17264.0,0.4]
[1673257573610,0.1667,17266.0,17264.0,0.4]
[1673257574352,0.1677,17266.0,17264.0,0.539]
[1673257574619,0.399369,17266.0,17264.0,0.539]
[1673257574865,1.02736495,17266.0,17264.0,0.539]
[1673257575121,0.1669,17265.0,17264.0,0.539]
[1673257576366,0.398582,17265.0,17264.0,0.4]
[1673257577401,0.398582,17265.0,17264.0,0.54]
[1673257577402,0.399582,17265.0,17264.0,0.54]
[1673257579389,0.631264,17265.0,17264.0,0.54]
[1673257581485,0.399582,17265.0,17264.0,0.54]
[1673257582210,0.631264,17265.0,17264.0,0.54]
[1673257583499,0.399582,17265.0,17264.0,0.54]
[1673257585352,0.631264,17265.0,17264.0,0.54]
[1673257585602,0.631264,17265.0,17264.0,0.14]
[1673257586394,0.399582,17265.0,17264.0,0.14]
[1673257587979,0.399582,17265.0,17264.0,0.16746503]
[1673257588693,0.631264,17265.0,17264.0,0.16746503]
[1673257589243,0.399582,17265.0,17264.0,0.16746503]
[1673257590267,0.631264,17265.0,17264.0,0.16746503]
[1673257591592,0.399582,17265.0,17264.0,0.16746503]
[1673257592157,0.66009801,17265.0,17264.0,0.16746503]
[1673257592410,0.399582,17265.0,17264.0,0.16746503]
[1673257592931,0.399582,17265.0,17264.0,0.16739128]
[1673257596047,0.232682,17265.0,17264.0,0.16739128]
[1673257596558,0.49319801,17265.0,17264.0,0.16739128]
[1673257597366,1.07143695,17265.0,17264.0,0.16739128]
[1673257599874,0.49319801,17265.0,17264.0,0.16739128]
[1673257602202,0.90197246,17266.0,17265.0,1.88480199]
[1673257602383,0.51325694,17266.0,17265.0,1.88480199]
[1673257602632,0.74492594,17266.0,17265.0,1.88480199]
[1673257602883,0.97660194,17266.0,17265.0,1.88480199]
[1673257603165,0.97660194,17266.0,17265.0,1.48480199]
[1673257603166,1.37713194,17266.0,17265.0,1.48480199]
[1673257603475,1.029814,17266.0,17265.0,1.48480199]
[1673257603926,1.06649411,17266.0,17265.0,1.48480199]
[1673257604192,1.06649411,17266.0,17265.0,1.62480199]
[1673257604193,1.0683782,17266.0,17265.0,1.62480199]
[1673257604444,1.0663782,17266.0,17265.0,1.48480199]
[1673257604696,1.0673782,17266.0,17265.0,1.55780199]
[1673257604961,0.8357092,17266.0,17265.0,1.55780199]
[1673257605222,1.18321758,17266.0,17265.0,1.55780199]
[1673257607623,0.84858938,17266.0,17265.0,1.55780199]
[1673257608408,0.81190927,17266.0,17265.0,1.55780199]
[1673257611312,1.24640113,17266.0,17265.0,1.55780199]
[1673257611511,1.46623345,17266.0,17265.0,1.55780199]
[1673257611760,1.55367378,17266.0,17265.0,1.55780199]
[1673257612006,1.25367378,17266.0,17265.0,1.55780199]
[1673257612265,1.36698843,17266.0,17265.0,1.55780199]
[1673257612537,1.88887378,17266.0,17265.0,1.55780199]
[1673257613017,2.17574796,17266.0,17265.0,1.55780199]
[1673257613526,1.88887378,17266.0,17265.0,1.55780199]
[1673257614593,2.33283222,17266.0,17265.0,1.55780199]
[1673257614898,2.73283222,17266.0,17265.0,1.55780199]
[1673257615213,2.78170935,17266.0,17265.0,1.55780199]
[1673257616673,2.78070935,17266.0,17265.0,1.48480199]
[1673257617184,2.78070935,17266.0,17265.0,1.48780199]
[1673257617433,2.80770935,17266.0,17265.0,1.48780199]
[1673257619945,2.75883222,17266.0,17265.0,1.48780199]
[1673257620455,2.82966988,17266.0,17265.0,1.48780199]
[1673257620712,2.42966988,17266.0,17265.0,1.48780199]
[1673257621516,2.72966988,17266.0,17265.0,1.48780199]
[1673257621722,2.56156988,17266.0,17265.0,1.48780199]
[1673257622208,3.33145995,17266.0,17265.0,1.48780199]
[1673257622464,3.01196367,17266.0,17265.0,1.48780199]
[1673257622722,2.04058843,17266.0,17265.0,1.48780199]
[1673257622970,2.56145345,17266.0,17265.0,1.48780199]
[1673257624253,2.26145345,17266.0,17265.0,1.48780199]
[1673257624496,2.09395345,17266.0,17265.0,1.48780199]
[1673257625258,2.39395345,17266.0,17265.0,1.48780199]
[1673257626287,2.09395345,17266.0,17265.0,1.48769351]
[1673257627308,2.29395345,17266.0,17265.0,1.48769351]
[1673257629876,2.49025457,17266.0,17265.0,1.48769351]
[1673257631140,1.77308843,17266.0,17265.0,1.48769351]
[1673257631903,2.29382517,17266.0,17265.0,1.48769351]
[1673257632150,1.77308843,17266.0,17265.0,1.48769351]
[1673257632662,2.39090075,17266.0,17265.0,1.48769351]
[1673257632914,3.14612177,17266.0,17265.0,1.48769351]
[1673257633177,3.60173488,17266.0,17265.0,1.51195504]
[1673257633429,3.01461386,17266.0,17265.0,1.51195504]
[1673257633676,2.15666556,17266.0,17265.0,1.51195504]
[1673257634711,2.31073146,17266.0,17265.0,1.51195504]
[1673257634979,2.26185433,17266.0,17265.0,1.51195504]
[1673257637294,2.66185433,17266.0,17265.0,1.51195504]
[1673257639362,1.96185433,17266.0,17265.0,1.51195504]
[1673257640113,1.44118843,17266.0,17265.0,1.51195504]
[1673257640638,1.57308843,17266.0,17265.0,1.51195504]
[1673257640893,1.27308843,17266.0,17265.0,1.51195504]
[1673257641645,1.10598843,17266.0,17265.0,1.51195504]
[1673257641903,1.40598843,17266.0,17265.0,1.51195504]
[1673257642163,1.92665433,17266.0,17265.0,1.51195504]
[1673257645219,1.10598843,17266.0,17265.0,1.51195504]
[1673257645469,0.87431943,17266.0,17265.0,1.51195504]
[1673257645729,1.6083591,17266.0,17265.0,1.51195504]
[1673257646017,1.17431943,17266.0,17265.0,1.51195504]
[1673257648091,0.87431943,17266.0,17265.0,1.51195504]
[1673257648588,1.69498533,17266.0,17265.0,1.51195504]
[1673257649083,1.92665433,17266.0,17265.0,1.51195504]
[1673257649334,1.62665433,17266.0,17265.0,1.51195504]
[1673257649589,0.87431943,17266.0,17265.0,1.51195504]
[1673257650347,0.87431943,17266.0,17265.0,1.51184726]
[1673257652871,1.10598843,17266.0,17265.0,1.51184726]
[1673257653138,1.92665433,17266.0,17265.0,1.51184726]
[1673257653389,1.62665433,17266.0,17265.0,1.51184726]
[1673257653663,1.10598843,17266.0,17265.0,1.51184726]
[1673257654425,1.92665433,17266.0,17265.0,1.51184726]
[1673257654897,1.62665433,17266.0,17265.0,1.51184726]
[1673257655147,1.92665433,17266.0,17265.0,1.51184726]
[1673257655628,1.62665433,17266.0,17265.0,1.51184726]
[1673257655888,1.92665433,17266.0,17265.0,1.51184726]
[1673257656140,1.62665433,17266.0,17265.0,1.51184726]
[1673257657132,1.10598843,17266.0,17265.0,1.51184726]
[1673257657389,1.92665433,17266.0,17265.0,1.51184726]
[1673257658644,1.57408843,17266.0,17265.0,1.51184726]
[1673257658888,1.74068843,17266.0,17265.0,1.51184726]
[1673257659396,2.04068843,17266.0,17265.0,1.51184726]
[1673257659648,2.62780945,17266.0,17265.0,1.51184726]
[1673257659896,3.07902177,17266.0,17265.0,1.51184726]
[1673257660671,3.47904975,17266.0,17265.0,1.51184726]
[1673257661705,3.45204975,17266.0,17265.0,1.50884726]
[1673257661968,2.95942873,17266.0,17265.0,1.51784726]
[1673257662989,2.09452832,17266.0,17265.0,1.51784726]
[1673257663277,1.33158843,17266.0,17265.0,1.75552515]
[1673257663542,1.33158843,17266.0,17265.0,1.50884726]
[1673257663543,1.60013936,17266.0,17265.0,1.50884726]
[1673257663788,1.68613936,17266.0,17265.0,1.51784726]
[1673257664803,1.45447036,17266.0,17265.0,1.51784726]
[1673257665553,0.93331943,17266.0,17265.0,1.51784726]
[1673257667532,1.33092083,17266.0,17265.0,1.51784726]
[1673257669047,0.86757583,17266.0,17265.0,1.51784726]
[1673257669312,0.086,17266.0,17265.0,1.51784726]
[1673257670334,0.83199592,17267.0,17265.0,1.50884726]